bitfinex/quotes_SOLUSD_20260217
["timestamp","ask_amount","ask_price","bid_price","bid_amount"]
[1771339523841,7.32929267,83.74,83.703,0.47501208]
[1771339524233,0.48778355,83.739,83.702,11.94701575]
[1771339524743,47.74651214,83.776,83.695,21.08]
[1771339524744,0.48778355,83.729,83.695,11.94807046]
[1771339525110,4.61729252,83.757,83.695,11.94807046]
[1771339525111,7.32929267,83.74,83.71,7.32929267]
[1771339525325,0.48778355,83.742,83.71,7.32929267]
[1771339525633,0.48778355,83.719,83.671,41.83050279]
[1771339525841,0.48778355,83.699,83.67,0.1]
[1771339526138,4.61729252,83.737,83.67,49.26023694]
[1771339526139,0.48778355,83.709,83.67,49.26023694]
[1771339526318,7.81707622,83.7,83.67,12.0516566]
[1771339526517,0.48778355,83.728,83.69,7.32929267]
[1771339526733,7.32929267,83.72,83.69,7.32929267]
[1771339527039,0.48778355,83.719,83.69,7.32929267]
[1771339527240,0.48778355,83.719,83.68,7.32929267]
[1771339527441,7.81707622,83.71,83.68,7.32929267]
[1771339527740,0.48778355,83.699,83.67,7.42929267]
[1771339527923,0.48778355,83.699,83.67,0.1]
[1771339528126,0.48778355,83.699,83.67,7.42929267]
[1771339528513,0.48778355,83.699,83.671,11.95157222]
[1771339528734,7.32929267,83.7,83.671,11.95157222]
[1771339528927,0.48778355,83.709,83.671,11.95157222]
[1771339529137,7.32929267,83.7,83.671,11.95157222]
[1771339529319,7.32929267,83.7,83.67,19.38097412]
[1771339529521,0.48778355,83.708,83.67,19.38097412]
[1771339529926,7.32929267,83.7,83.67,19.38097412]
[1771339530149,0.48778355,83.702,83.67,49.26026179]
[1771339530338,0.48778355,83.714,83.68,7.32929267]
[1771339530645,0.48778355,83.713,83.681,11.95014399]
[1771339530965,0.48778355,83.699,83.67,0.1]
[1771339531127,0.48778355,83.762,83.691,0.47501208]
[1771339531445,0.48778355,83.739,83.672,0.47501208]
[1771339531652,13.08,83.738,83.672,0.47501208]
[1771339531943,0.48778355,83.736,83.7,7.32929267]
[1771339532145,7.32929267,83.8,83.671,89.6367917]
[1771339532146,0.48778355,83.729,83.672,0.47501208]
[1771339532449,0.48778355,83.719,83.674,0.47501208]
[1771339532630,0.48778355,83.719,83.69,7.32929267]
[1771339532825,7.32929267,83.73,83.7,7.32929267]
[1771339532826,14.92,83.718,83.7,7.32929267]
[1771339533045,14.92,83.721,83.7,7.32929267]
[1771339533251,4.61729252,83.757,83.673,137.43979537]
[1771339533252,0.48778355,83.728,83.674,0.47501208]
[1771339533438,14.92,83.727,83.71,7.32929267]
[1771339533748,0.48778355,83.725,83.674,0.47501208]
[1771339534048,0.48778355,83.719,83.69,7.32929267]
[1771339534342,14.92,83.718,83.7,7.32929267]
[1771339534844,14.92,83.718,83.692,11.94849611]
[1771339535047,7.32929267,83.74,83.71,7.32929267]
[1771339535247,12.42642607,83.762,83.711,0.47501208]
[1771339535446,0.48778355,83.739,83.693,0.47501208]
[1771339535648,41.78511227,83.762,83.692,11.94849611]
[1771339535649,0.48778355,83.729,83.692,11.94849611]
[1771339535849,0.48778355,83.729,83.69,7.32929267]
[1771339536042,0.48778355,83.719,83.684,11.94964505]
[1771339536245,0.48778355,83.717,83.69,7.32929267]
[1771339536439,0.48778355,83.717,83.68,7.32929267]
[1771339536748,0.48778355,83.716,83.681,11.95014399]
[1771339536925,0.48778355,83.709,83.675,11.95094914]
[1771339537133,0.48778355,83.699,83.67,7.42929267]
[1771339537330,0.48778355,83.697,83.67,0.1]
[1771339537632,41.80759481,83.717,83.645,29.88792054]
[1771339537633,7.32929267,83.68,83.645,29.88792054]
[1771339537832,7.32929267,83.67,83.634,0.47501208]
[1771339538032,14.9,83.669,83.636,0.5]
[1771339538244,7.32929267,83.66,83.631,0.5]
[1771339538450,14.9,83.659,83.631,12.45728856]
[1771339538648,7.32929267,83.65,83.631,0.5]
[1771339538850,7.32929267,83.65,83.605,29.90220448]
[1771339538851,6.236,83.588,83.566,0.5]
[1771339539034,4.61729252,83.577,83.534,6.24135025]
[1771339539235,14.9,83.597,83.551,0.5]
[1771339539434,14.9,83.596,83.551,0.5]
[1771339539633,304.84524619,83.649,83.561,0.5]
[1771339539634,7.32929267,83.6,83.561,0.5]
[1771339539952,89.66036652,83.649,83.571,0.5]
[1771339540153,41.84150437,83.649,83.55,7.32929267]
[1771339540334,13.55561978,83.63,83.599,0.5]
[1771339540754,46.46980425,83.627,83.527,137.68003159]
[1771339540966,46.9575878,83.627,83.58,7.32929267]
[1771339541137,7.32929267,83.62,83.55,7.32929267]
[1771339541337,11.95786049,83.627,83.55,7.32929267]
[1771339541650,6.22632711,83.63,83.551,1.19687376]
[1771339541847,6.22632711,83.63,83.6,7.32929267]
[1771339542035,29.88555753,83.653,83.55,7.32929267]
[1771339542036,4.61729252,83.655,83.551,1.19687376]
[1771339542231,7.32929267,83.63,83.59,7.32929267]
[1771339542433,41.83702271,83.658,83.59,7.32929267]
[1771339542636,0.5,83.699,83.65,7.32929267]
[1771339542856,47.77077431,83.734,83.6,7.32929267]
[1771339542857,7.32929267,83.67,83.601,11.9615794]
[1771339543059,0.5,83.669,83.601,41.86552791]
[1771339543235,7.32929267,83.63,83.601,41.86552791]
[1771339543636,0.5,83.641,83.601,41.86552791]
[1771339543855,7.32929267,83.63,83.601,41.86552791]
[1771339544243,7.32929267,83.63,83.601,11.9615794]
[1771339544244,0.5,83.63,83.601,11.9615794]
[1771339544439,0.5,83.662,83.62,7.32929267]
[1771339544634,41.81700876,83.698,83.61,7.32929267]
[1771339544635,7.32929267,83.65,83.61,7.32929267]
[1771339544846,7.32929267,83.65,83.575,47.86087234]
[1771339544847,0.5,83.629,83.569,89.74619775]
[1771339545046,7.32929267,83.66,83.569,185.47547535]
[1771339545268,0.5,83.649,83.62,7.32929267]
[1771339545567,0.5,83.649,83.61,7.32929267]
[1771339546553,0.5,83.649,83.62,7.32929267]
[1771339546751,0.5,83.663,83.621,11.9587185]
[1771339546943,7.32929267,83.66,83.621,11.9587185]
[1771339547263,7.32929267,83.66,83.621,41.85551475]
[1771339547461,0.5,83.663,83.63,7.32929267]
[1771339547960,0.5,83.663,83.621,41.85551475]
[1771339547961,0.5,83.649,83.621,11.9587185]
[1771339548150,0.5,83.639,83.6,7.36509349]
[1771339548348,7.36509349,83.61,83.576,41.87805111]
[1771339548651,0.5,83.629,83.59,7.36509349]
[1771339548848,0.5,83.629,83.581,41.87554586]
[1771339549165,0.5,83.627,83.581,41.87554586]
[1771339549467,0.5,83.619,83.581,41.87554586]
[1771339549647,0.5,83.619,83.59,7.36509349]
[1771339550042,0.5,83.639,83.6,7.36509349]
[1771339550458,0.5,83.638,83.61,7.36509349]
[1771339550776,0.5,83.629,83.59,7.36509349]
[1771339550951,0.5,83.629,83.558,95.74121001]
[1771339550952,0.5,83.641,83.6,7.36509349]
[1771339551269,0.5,83.609,83.591,11.96301037]
[1771339551848,0.5,83.619,83.591,11.96301037]
[1771339552052,0.5,83.619,83.581,11.96444167]
[1771339552469,7.86509349,83.63,83.59,7.36509349]
[1771339552764,0.5,83.629,83.6,7.36509349]
[1771339552983,0.5,83.629,83.601,11.9615794]
[1771339553138,0.5,83.629,83.601,41.86552791]
[1771339553342,7.36509349,83.64,83.61,7.36509349]
[1771339553542,7.36509349,83.62,83.591,11.96301037]
[1771339553747,0.5,83.619,83.591,11.96301037]
[1771339554366,0.5,83.609,83.591,11.96301037]
[1771339554851,0.5,83.619,83.58,7.36509349]
[1771339555183,0.5,83.599,83.56,7.36509349]
[1771339555477,11.95914755,83.618,83.554,41.88907772]
[1771339555478,0.5,83.589,83.554,11.96830792]
[1771339556069,0.5,83.589,83.527,47.88839073]
[1771339556070,0.5,83.569,83.515,11.9738969]
[1771339556288,0.5,83.569,83.53,7.36509349]
[1771339556483,0.5,83.569,83.515,11.9738969]
[1771339556484,0.5,83.559,83.52,7.36509349]
[1771339556649,0.5,83.559,83.515,11.9738969]
[1771339556650,0.5,83.549,83.515,41.90863916]
[1771339557072,0.5,83.549,83.52,7.36509349]
[1771339557271,0.5,83.549,83.51,7.36509349]
[1771339557481,0.5,83.539,83.45,18.18330018]
[1771339557776,4.61729252,83.59,83.5,7.36509349]
[1771339557777,0.5,83.573,83.5,7.36509349]
[1771339557976,0.5,83.539,83.51,7.36509349]
[1771339558279,0.5,83.539,83.462,47.92546468]
[1771339558280,0.5,83.529,83.483,11.97848663]
[1771339558453,0.5,83.529,83.482,11.97850103]
[1771339558653,0.5,83.533,83.482,11.97850103]
[1771339558852,0.5,83.529,83.49,7.46509349]
[1771339559170,0.5,83.527,83.491,11.97733887]
[1771339559479,47.86673876,83.566,83.49,7.46509349]
[1771339559480,0.5,83.509,83.49,0.1]
[1771339559981,0.5,83.509,83.491,11.97733887]
[1771339560180,95.70841464,83.588,83.491,11.97733887]
[1771339560181,0.5,83.527,83.5,7.36509349]
[1771339560560,7.36509349,83.54,83.491,41.92068605]
[1771339560758,7.36509349,83.54,83.5,7.36509349]
[1771339560952,11.97332343,83.519,83.49,0.1]
[1771339561160,7.36509349,83.51,83.465,11.9810699]
[1771339561381,11.97252498,83.525,83.48,7.36509349]
[1771339561587,14.82,83.53,83.49,7.36509349]
[1771339561588,7.36509349,83.53,83.49,7.36509349]
[1771339561762,14.82,83.55,83.51,7.36509349]
[1771339562079,7.36509349,83.54,83.5,7.36509349]
[1771339562269,11.96971433,83.545,83.51,7.36509349]
[1771339562471,0.48849871,83.539,83.5,7.36509349]
[1771339562777,0.48849871,83.539,83.51,7.36509349]
[1771339563375,0.48849871,83.529,83.49,7.36509349]
[1771339563954,0.48849871,83.529,83.5,7.36509349]
[1771339564167,0.48849871,83.529,83.478,0.4842414]
[1771339564374,0.48849871,83.529,83.49,7.36509349]
[1771339564573,0.48849871,83.529,83.5,7.36509349]
[1771339564768,0.48849871,83.519,83.477,11.9793476]
[1771339564967,0.48849871,83.509,83.48,7.36509349]
[1771339565272,7.36509349,83.52,83.48,7.36509349]
[1771339565458,0.48849871,83.559,83.511,0.4842414]
[1771339565664,0.48849871,83.559,83.52,7.36509349]
[1771339565974,0.48849871,83.549,83.52,7.36509349]
[1771339566282,7.36509349,83.56,83.53,7.36509349]
[1771339566581,7.36509349,83.54,83.481,0.4842414]
[1771339566753,7.36509349,83.52,83.49,7.36509349]
[1771339566953,7.36509349,83.52,83.481,0.4842414]
[1771339567363,7.36509349,83.53,83.501,0.4842414]
[1771339567562,7.36509349,83.53,83.464,47.9243944]
[1771339567563,7.36509349,83.51,83.461,0.4842414]
[1771339567783,4.61729252,83.539,83.461,0.4842414]
[1771339567784,7.36509349,83.5,83.462,11.98150056]
[1771339568087,7.36509349,83.49,83.462,11.98150056]
[1771339568290,0.48849871,83.499,83.462,11.98150056]
[1771339568685,0.41150129,83.479,83.45,17.53126669]
[1771339568981,29.46037396,83.55,83.43,7.86509349]
[1771339568982,6.242,83.46,83.43,7.86509349]
[1771339569180,5.53186884,83.46,83.43,7.86509349]
[1771339569375,5.53186884,83.46,83.44,7.36509349]
[1771339569584,12.89696233,83.46,83.43,7.36509349]
[1771339569768,12.89696233,83.46,83.428,11.98624982]
[1771339569965,11.98193124,83.459,83.424,0.5]
[1771339570269,5.53186884,83.46,83.431,0.5]
[1771339570464,5.53186884,83.46,83.441,0.5]
[1771339570985,47.88132555,83.54,83.423,41.95483305]
[1771339570986,7.36509349,83.51,83.451,0.5]
[1771339571175,7.36509349,83.5,83.465,0.5]
[1771339571397,47.88113774,83.541,83.47,7.36509349]
[1771339571685,47.88113774,83.541,83.465,11.98103744]
[1771339571686,7.36509349,83.53,83.501,0.5]
[1771339571878,7.36509349,83.54,83.501,0.5]
[1771339572072,7.36509349,83.55,83.511,0.5]
[1771339572279,7.36509349,83.55,83.52,7.36509349]
[1771339572485,7.36509349,83.53,83.5,7.36509349]
[1771339572983,7.36509349,83.52,83.483,0.5]
[1771339573176,7.36509349,83.51,83.483,0.5]
[1771339573590,7.36509349,83.51,83.484,11.97834315]
[1771339573787,11.97296411,83.522,83.485,0.5]
[1771339574107,11.97189,83.529,83.491,0.5]
[1771339574265,11.97189,83.529,83.5,7.36509349]
[1771339574469,7.36509349,83.54,83.51,7.36509349]
[1771339574697,47.84143864,83.61,83.521,0.5]
[1771339574865,71.67979543,83.706,83.561,0.5]
[1771339574866,47.82751133,83.634,83.561,0.5]
[1771339575069,14.86,83.65,83.561,0.5]
[1771339575070,6.23159208,83.599,83.561,0.5]
[1771339575286,7.36509349,83.59,83.561,0.5]
[1771339575497,7.36509349,83.58,83.55,19.33384337]
[1771339575691,7.36509349,83.58,83.504,47.90153839]
[1771339575692,4.61729252,83.595,83.485,0.5]
[1771339575988,7.36509349,83.59,83.551,0.5]
[1771339576295,41.86703031,83.598,83.56,7.36509349]
[1771339576479,47.82629489,83.636,83.504,0.5]
[1771339576686,7.36509349,83.57,83.537,0.5]
[1771339576887,7.36509349,83.56,83.537,0.5]
[1771339577270,7.36509349,83.6,83.5,7.36509349]
[1771339577271,7.36509349,83.55,83.524,0.5]
[1771339577477,11.96759176,83.559,83.524,0.5]
[1771339578193,7.36509349,83.55,83.524,0.5]
[1771339578693,7.36509349,83.57,83.531,0.5]
[1771339578890,11.9661597,83.569,83.531,0.5]
[1771339579371,0.5,83.606,83.525,293.32535165]
[1771339579569,7.36509349,83.59,83.551,11.96873765]
[1771339579784,0.5,83.579,83.551,11.96873765]
[1771339580100,7.36509349,83.62,83.558,0.47573439]
[1771339580287,7.36509349,83.62,83.551,41.89058179]
[1771339580288,47.79692912,83.688,83.6,7.36509349]
[1771339580473,47.79692912,83.688,83.61,7.36509349]
[1771339580789,7.36509349,83.66,83.62,7.36509349]
[1771339580982,137.39710151,83.699,83.6,7.36509349]
[1771339580983,41.81650915,83.699,83.615,0.47573439]
[1771339581184,137.39710151,83.699,83.552,0.47573439]
[1771339581372,7.36509349,83.63,83.572,0.47573439]
[1771339581577,7.36509349,83.65,83.533,0.47573439]
[1771339581778,4.61729252,83.649,83.557,0.47573439]
[1771339581973,5.36086188,83.665,83.59,7.36509349]
[1771339581974,0.46880421,83.629,83.59,7.36509349]
[1771339582395,0.46880421,83.629,83.55,7.36509349]
[1771339582396,0.46880421,83.694,83.62,7.36509349]
[1771339582584,0.46880421,83.669,83.602,0.47573439]
[1771339582889,0.46880421,83.669,83.63,7.36509349]
[1771339583100,0.46880421,83.659,83.62,7.36509349]
[1771339583281,0.46880421,83.673,83.63,7.36509349]
[1771339583480,0.46880421,83.669,83.582,0.47573439]
[1771339583700,0.46880421,83.659,83.61,7.36509349]
[1771339583889,0.46880421,83.649,83.61,7.36509349]
[1771339584199,0.46880421,83.649,83.62,7.36509349]
[1771339584381,0.46880421,83.649,83.61,7.36509349]
[1771339584576,0.46880421,83.664,83.605,0.47573439]
[1771339584782,0.46880421,83.664,83.63,7.36509349]
[1771339585199,0.46880421,83.664,83.607,21.14]
[1771339585399,0.46880421,83.664,83.62,7.36509349]
[1771339585584,0.46880421,83.659,83.621,11.9587185]
[1771339585785,0.46880421,83.657,83.62,7.36509349]
[1771339585981,0.46880421,83.649,83.608,11.96057793]
[1771339586197,0.46880421,83.639,83.59,7.36509349]
[1771339586587,7.36509349,83.67,83.62,7.36509349]
[1771339587098,7.36509349,83.67,83.63,7.36509349]
[1771339587685,11.95185791,83.669,83.631,11.95728856]
[1771339588088,7.36509349,83.66,83.621,11.9587185]
[1771339588288,11.95185791,83.669,83.63,7.36509349]
[1771339588480,11.95185791,83.669,83.621,41.85551475]
[1771339588481,0.46880421,83.678,83.64,7.36509349]
[1771339589000,0.46880421,83.678,83.631,0.47573439]
[1771339589210,0.46880421,83.678,83.64,7.36509349]
[1771339589799,12.41951946,83.677,83.641,11.95585896]
[1771339590002,7.36509349,83.68,83.641,11.95585896]
[1771339590003,11.94830948,83.694,83.66,7.36509349]
[1771339590201,7.36509349,83.69,83.651,0.47573439]
[1771339590398,7.36509349,83.69,83.65,7.36509349]
[1771339590399,0.46880421,83.689,83.65,7.36509349]
[1771339591008,0.46880421,83.689,83.66,7.36509349]
[1771339591201,0.46880421,83.689,83.641,41.84550638]
[1771339591401,0.46880421,83.689,83.65,7.36509349]
[1771339591606,47.77748404,83.722,83.65,7.36509349]
[1771339591607,11.9468596,83.705,83.67,7.36509349]
[1771339591925,0.46880421,83.702,83.67,7.36509349]
[1771339592206,0.46880421,83.702,83.661,11.9530008]
[1771339592207,11.94614677,83.709,83.68,7.36509349]
[1771339592412,0.46880421,83.708,83.66,7.36509349]
[1771339592719,0.46880421,83.699,83.66,7.36509349]
[1771339593440,0.46880421,83.699,83.67,7.36509349]
[1771339593586,0.46880421,83.699,83.65,7.36509349]
[1771339593792,0.46880421,83.689,83.651,11.95442971]
[1771339594116,0.46880421,83.689,83.66,7.36509349]
[1771339594329,11.94771679,83.698,83.66,7.36509349]
[1771339594489,0.2,83.71,83.67,7.36509349]
[1771339594690,12.41495098,83.709,83.67,7.36509349]
[1771339594899,0.46880421,83.708,83.67,7.36509349]
[1771339595208,0.46880421,83.699,83.66,7.36509349]
[1771339595519,0.46880421,83.689,83.651,11.95442971]
[1771339595719,0.46880421,83.677,83.631,11.9572039]
[1771339595921,7.36509349,83.67,83.631,11.9572039]
[1771339596215,14.92,83.704,83.631,11.9572039]
[1771339596216,11.94847768,83.693,83.66,7.36509349]
[1771339596513,0.46880421,83.689,83.64,7.36509349]
[1771339596715,11.94847768,83.693,83.631,41.85042531]
[1771339596716,0.46880421,83.669,83.631,11.9572039]
[1771339597421,0.46880421,83.659,83.613,11.9598627]
[1771339597624,0.46880421,83.659,83.62,7.36509349]
[1771339597809,11.95342943,83.658,83.621,12.43445289]
[1771339598007,12.42066212,83.669,83.63,7.36509349]
[1771339598208,7.36509349,83.68,83.64,7.36509349]
[1771339598424,0.46880421,83.681,83.64,7.36509349]
[1771339598622,0.46880421,83.681,83.621,41.85551475]
[1771339598623,0.46880421,83.72,83.671,0.47573439]
[1771339598839,0.46880421,83.743,83.7,7.36509349]
[1771339599016,11.94115399,83.744,83.7,7.36509349]
[1771339599017,0.46880421,83.739,83.7,7.36509349]
[1771339599633,7.36509349,83.73,83.69,7.36509349]
[1771339599842,0.46880421,83.719,83.67,7.36509349]
[1771339600016,7.36509349,83.71,83.67,7.36509349]
[1771339600218,0.46880421,83.709,83.68,7.36509349]
[1771339600417,0.46880421,83.724,83.69,7.36509349]
[1771339600616,0.46880421,83.729,83.69,7.36509349]
[1771339600970,11.94260795,83.734,83.664,12.4281695]
[1771339600971,0.46880421,83.709,83.664,12.4281695]
[1771339601231,0.46880421,83.699,83.66,7.36509349]
[1771339601828,0.46880421,83.708,83.663,0.47573439]
[1771339602029,11.94614677,83.709,83.651,11.95442971]
[1771339602030,0.46880421,83.699,83.651,11.95442971]
[1771339602210,0.46880421,83.699,83.66,7.36509349]
[1771339602409,11.94614677,83.709,83.67,7.36509349]
[1771339602613,0.46880421,83.708,83.67,7.36509349]
[1771339602917,19.53729252,83.731,83.651,41.84050399]
[1771339602918,0.46880421,83.729,83.69,7.36509349]
[1771339603119,11.9431506,83.73,83.665,0.47573439]
[1771339603120,0.46880421,83.709,83.665,0.47573439]
[1771339603321,0.46880421,83.722,83.681,0.47573439]
[1771339603616,11.9431506,83.73,83.69,7.36509349]
[1771339603830,11.9431506,83.73,83.69,19.31385136]
[1771339604207,0.46880421,83.729,83.69,7.36509349]
[1771339604456,0.48988355,83.699,83.64,0.48437448]
[1771339604607,0.48988355,83.699,83.6,7.36509349]
[1771339604608,0.48988355,83.669,83.63,7.36509349]
[1771339604931,0.48988355,83.669,83.63,0.48437448]
[1771339605107,0.48988355,83.649,83.61,7.36509349]
[1771339605313,0.48988355,83.649,83.605,0.48437448]
[1771339605513,0.48988355,83.639,83.601,11.9615794]
[1771339605715,0.48988355,83.66,83.6,7.36509349]
[1771339605921,7.36509349,83.63,83.591,0.48437448]
[1771339606252,7.36509349,83.63,83.592,11.96286726]
[1771339606531,7.36509349,83.6,83.567,11.96640254]
[1771339606708,7.36509349,83.62,83.58,7.36509349]
[1771339606908,7.36509349,83.61,83.571,0.48437448]
[1771339607109,7.85497704,83.6,83.562,11.96715163]
[1771339607325,7.85497704,83.6,83.563,0.48437448]
[1771339607531,41.84650701,83.639,83.562,11.96715163]
[1771339607532,0.48988355,83.599,83.562,11.96715163]
[1771339607727,7.36509349,83.61,83.57,7.36509349]
[1771339607931,7.36509349,83.61,83.562,12.45152611]
[1771339607932,7.37552318,83.6,83.566,11.96658489]
[1771339608134,11.96043488,83.609,83.561,11.96721939]
[1771339608135,7.37552318,83.59,83.561,11.96721939]
[1771339608312,0.48988355,83.599,83.561,11.96721939]
[1771339608921,0.48988355,83.589,83.546,11.96935823]
[1771339609228,0.48988355,83.589,83.508,47.89936462]
[1771339609229,0.48988355,83.569,83.536,11.97079777]
[1771339609624,0.48988355,83.559,83.52,7.37552318]
[1771339609820,0.48988355,83.559,83.53,7.37552318]
[1771339610022,7.37552318,83.57,83.53,7.37552318]
[1771339610331,0.48988355,83.569,83.527,0.48437448]
[1771339610529,41.87454386,83.583,83.511,11.97447042]
[1771339610530,0.48988355,83.549,83.511,11.97447042]
[1771339610732,0.48988355,83.562,83.52,7.85989766]
[1771339610933,41.87454386,83.583,83.49,7.37552318]
[1771339610934,0.48988355,83.539,83.49,7.37552318]
[1771339611117,0.48988355,83.542,83.501,0.48437448]
[1771339611321,7.37552318,83.54,83.501,0.48437448]
[1771339611533,7.86540673,83.54,83.501,0.48437448]
[1771339611736,0.48988355,83.539,83.488,29.94432999]
[1771339611914,0.48988355,83.539,83.487,0.48437448]
[1771339611915,0.48988355,83.527,83.491,11.97733887]
[1771339612118,7.37552318,83.5,83.453,0.45029162]
[1771339612337,7.37552318,83.5,83.417,95.90321474]
[1771339612338,0.45926781,83.515,83.471,0.45029162]
[1771339612538,7.83479099,83.5,83.455,0.45029162]
[1771339612728,7.37552318,83.51,83.461,0.45029162]
[1771339613125,7.37552318,83.53,83.481,0.45029162]
[1771339613316,0.45926781,83.544,83.491,0.45029162]
[1771339613517,4.61729252,83.537,83.491,0.45029162]
[1771339613939,4.61729252,83.537,83.45,7.37552318]
[1771339613940,7.37552318,83.52,83.478,0.45029162]
[1771339614142,0.45926781,83.528,83.48,7.37552318]
[1771339614443,41.901615,83.529,83.466,0.45029162]
[1771339614444,7.37552318,83.51,83.466,0.45029162]
[1771339615021,7.37552318,83.51,83.457,21.08]
[1771339615022,7.37552318,83.5,83.453,12.43305363]
[1771339615246,0.45926781,83.499,83.454,0.45029162]
[1771339615542,7.37552318,83.51,83.461,0.45029162]
[1771339615843,7.37552318,83.51,83.471,0.45029162]
[1771339616042,7.37552318,83.49,83.444,0.45029162]
[1771339616224,7.37552318,83.47,83.421,0.45029162]
[1771339616420,7.37552318,83.48,83.431,0.45029162]
[1771339616737,4.61729252,83.497,83.405,0.45029162]
[1771339616738,7.37552318,83.44,83.405,0.45029162]
[1771339616927,7.37552318,83.48,83.421,0.45029162]
[1771339617127,0.45926781,83.479,83.431,0.45029162]
[1771339617348,7.37552318,83.48,83.431,0.45029162]
[1771339617846,4.61729252,83.491,83.421,0.45029162]
[1771339617847,7.37552318,83.47,83.421,0.45029162]
[1771339618145,11.97762579,83.489,83.441,0.45029162]
[1771339618350,7.37552318,83.48,83.441,0.45029162]
[1771339618553,7.37552318,83.47,83.422,11.98724557]
[1771339618722,7.37552318,83.47,83.423,0.45029162]
[1771339620018,19.35597241,83.47,83.425,0.45029162]
[1771339620425,7.37552318,83.5,83.451,0.45029162]
[1771339620643,11.9749006,83.508,83.451,0.45029162]
[1771339620825,11.97217666,83.527,83.481,0.45029162]
[1771339621025,11.97217666,83.527,83.491,0.45029162]
[1771339621631,7.37552318,83.54,83.491,0.45029162]
[1771339621849,11.96902416,83.549,83.501,0.45029162]
[1771339622047,41.89158457,83.549,83.501,0.45029162]
[1771339622347,41.89158457,83.549,83.503,0.45029162]
[1771339622531,11.96902416,83.549,83.503,0.45029162]
[1771339622732,11.96730532,83.561,83.521,0.45029162]
[1771339623046,11.96415539,83.583,83.551,0.45029162]
[1771339623227,7.37552318,83.56,83.503,0.45029162]
[1771339623637,7.37552318,83.55,83.503,0.45029162]
[1771339623941,4.61729252,83.571,83.51,7.37552318]
[1771339624155,11.96902416,83.549,83.509,0.45029162]
[1771339624356,11.96759176,83.559,83.511,0.45029162]
[1771339624650,11.96759176,83.559,83.445,47.93561432]
[1771339624651,7.83479099,83.54,83.445,47.93561432]
[1771339624872,7.37552318,83.5,83.46,7.37552318]
[1771339625025,0.45926781,83.495,83.43,28.41552318]
[1771339625349,0.45926781,83.499,83.43,28.41552318]
[1771339625647,7.37552318,83.48,83.44,7.37552318]
[1771339625827,7.37552318,83.49,83.45,7.37552318]
[1771339626144,7.37552318,83.51,83.471,11.98020869]
[1771339626349,7.37552318,83.48,83.401,11.9902639]
[1771339626547,7.37552318,83.46,83.41,7.37552318]
[1771339626842,7.37552318,83.48,83.441,0.45029162]
[1771339627277,7.37552318,83.46,83.423,0.45029162]
[1771339628165,7.37552318,83.45,83.425,0.45029162]
[1771339628462,7.37552318,83.45,83.424,11.98695818]
[1771339628463,11.97911664,83.479,83.431,0.45029162]
[1771339628676,7.37552318,83.46,83.431,0.45029162]
[1771339628842,11.97911664,83.479,83.418,11.98767824]
[1771339628843,7.37552318,83.45,83.418,11.98767824]
[1771339629045,7.37552318,83.46,83.42,7.37552318]
[1771339629366,0.4907437,83.459,83.42,7.37552318]
[1771339629661,7.37552318,83.45,83.418,11.98767824]
[1771339629863,0.4907437,83.459,83.4,0.1]
[1771339629864,0.4907437,83.449,83.406,11.98942529]
[1771339630048,0.4907437,83.449,83.41,7.37552318]
[1771339630361,7.37552318,83.44,83.411,11.98882641]
[1771339630545,0.4907437,83.449,83.411,11.98882641]
[1771339630943,11.98351068,83.448,83.411,11.98882641]
[1771339631249,0.4907437,83.468,83.43,7.37552318]
[1771339631454,11.97808175,83.486,83.45,7.37552318]
[1771339631651,0.4907437,83.479,83.44,7.37552318]
[1771339631853,7.37552318,83.46,83.43,7.37552318]
[1771339632360,0.4907437,83.466,83.431,11.98595246]
[1771339632666,7.37552318,83.48,83.431,41.95083361]
[1771339632965,7.37552318,83.49,83.45,7.37552318]
[1771339633262,11.97719541,83.492,83.431,11.98595246]
[1771339633263,7.37552318,83.47,83.431,11.98595246]
[1771339633940,7.37552318,83.46,83.42,29.96854341]
[1771339634154,7.37552318,83.46,83.43,7.37552318]
[1771339634459,11.98193124,83.459,83.43,7.37552318]
[1771339634663,7.37552318,83.45,83.415,21.0]
[1771339634844,7.37552318,83.45,83.414,11.98834696]
[1771339635263,7.86626688,83.45,83.411,11.98882641]
[1771339636341,0.4907437,83.439,83.4,7.47552318]
[1771339636547,0.4907437,83.439,83.4,19.46580526]
[1771339637148,41.94178479,83.449,83.4,0.1]
[1771339637368,0.4907437,83.439,83.41,7.37552318]
[1771339637663,0.4907437,83.439,83.401,11.9902639]
[1771339637664,7.37552318,83.43,83.4,19.46580171]
[1771339637840,0.4907437,83.439,83.4,19.46580171]
[1771339637841,0.4907437,83.439,83.41,7.37552318]
[1771339638484,0.4907437,83.452,83.42,7.37552318]
[1771339638665,0.4907437,83.477,83.44,7.37552318]
[1771339638859,0.4907437,83.469,83.44,7.37552318]
[1771339639057,7.37552318,83.46,83.431,21.0]